Cogmind - Beta 13 @@@ ROGUE MODE // 2024.04.03 @ 12:44:02 Player: Nathan Result: Destroyed by G-34 Mercenary with Small Laser Performance ------------- Evolutions (0) 0 Regions Visited (4) 800 Robots Destroyed (16) 80 Value Destroyed (288) 288 Prototype IDs (3) 60 Alien Tech Used (0) 0 Bonus (300) 300 TOTAL SCORE: 1528 Bonus ------- Aligned with FarCom 300 Cogmind --------- Core Integrity 0/250 Matter 219/300 Energy 125/125 System Corruption 0% Temperature Cool (6) Movement Walking (120) Location -9/Mines Parts ------- > --- POWER (1) -------- Light Ion Engine > --- PROPULSION (2) --- Aluminum Leg Aluminum Leg > --- UTILITY (2) ------ Medium Storage Unit PSU Rigger > --- WEAPON (2) ------- Particle Gun Assault Rifle > --- INVENTORY (10) --- Wheel Compact Wheel Heat Sink Small Storage Unit Large Storage Unit Signal Interpreter Signal Interpreter Improved Terrain Scanner Light Assault Rifle Mining Laser Peak State ------------ > --- POWER ------------ Light Ion Engine > --- PROPULSION ------- Aluminum Leg Aluminum Leg > --- UTILITY ---------- Medium Storage Unit PSU Rigger > --- WEAPON ----------- Particle Gun Particle Gun > --- INVENTORY -------- Aluminum Leg Wheel Compact Wheel Heat Sink Small Storage Unit Large Storage Unit Signal Interpreter Signal Interpreter Assault Rifle Light Assault Rifle [Rating: 17] Favorites ----------- Power Light Ion Engine Engine Light Ion Engine Propulsion Aluminum Leg Leg Aluminum Leg Utility Medium Storage Unit Device PSU Rigger Storage Medium Storage Unit Processor Signal Interpreter Weapon Particle Gun Energy Gun Particle Gun Ballistic Gun Light Assault Rifle Build | -11 -10 -10 -10 -9 ------- Run | Yrd Mat Min Exi Min Slots Evolved . | . . . . . Power . | . . . . . Propulsion . | . . . . . Utility . | . . . . . Weapon . | . . . . . Parts Attached 23 | 6 11 . 1 5 Power 4 | 1 2 . . 1 Engine 4 | 1 2 . . 1 Core . | . . . . . Reactor . | . . . . . Propulsion 7 | 2 2 . . 3 Treads . | . . . . . Leg 7 | 2 2 . . 3 Wheel . | . . . . . Hover . | . . . . . Flight . | . . . . . Utility 4 | 1 2 . 1 . Device 1 | . . . 1 . Storage 2 | 1 1 . . . Processor 1 | . 1 . . . Hackware . | . . . . . Protection . | . . . . . Artifact . | . . . . . Weapon 8 | 2 5 . . 1 Energy Gun 3 | 1 2 . . . Energy Cannon . | . . . . . Ballistic Gun 5 | 1 3 . . 1 Ballistic Cannon . | . . . . . Launcher . | . . . . . Special Weapon . | . . . . . Impact Weapon . | . . . . . Slashing Weapon . | . . . . . Piercing Weapon . | . . . . . Special Melee Weapon . | . . . . . Unidentified Prototypes 1 | . . . 1 . Parts Lost 4 | . 2 . . 2 Power 2 | . 1 . . 1 Propulsion 1 | . 1 . . . Utility . | . . . . . Weapon 1 | . . . . 1 Highest Loss Streak 2 | . 1 . . 2 To Critical Strikes . | . . . . . Average Slot Usage (%) 98 | . 96 100 100 96 Engine 13 | . 14 14 14 11 Leg 27 | . 27 28 28 28 Device 4 | . . . 2 14 Storage 14 | . 14 14 14 14 Processor 9 | . 11 14 11 . Energy Gun 23 | . 12 28 28 21 Ballistic Gun 4 | . 15 . . 6 Naked Turns . | . . . . . Heaviest Build 21 | 11 21 19 21 21 Greatest Support 20 | 20 20 20 20 20 Greatest Overweight (x) 1 | . 1 . 1 1 Average Overweight (x) . | . . . . . Largest Inventory Capacity 10 | 8 10 10 10 10 Average Capacity 9 | 7 9 10 10 10 Most Carried 10 | 4 10 10 10 10 Average Carried 9 | 2 7 10 10 9 Final Capacity 10 | 8 10 10 10 10 Final Carried 10 | 4 10 10 10 10 Class Distribution -------------------- 100% | Mutant Dominant Class ---------------- Mutant | -10/Materials Mutant | -10/Mines Mutant | -10/Exiles Mutant | -9/Mines Resources | -11 -10 -10 -10 -9 ----------- Run | Yrd Mat Min Exi Min Matter Collected 397 | 147 132 . . 118 Remotely . | . . . . . Salvage Created 371 | . 223 . . 148 Parts 20 | . 10 . . 10 Haulers Intercepted . | . . . . . Recyclers Shooed . | . . . . . Parts Field Recycled . | . . . . . Retrieved Matter . | . . . . . Parts Self-Destructed . | . . . . . Prevented . | . . . . . Kills | -11 -10 -10 -10 -9 ------- Run | Yrd Mat Min Exi Min Combat Hostiles Destroyed 12 | . 7 . . 5 Guns 11 | . 6 . . 5 Classes Destroyed 5 | . 3 . . 2 Builder 1 | . . . . 1 Tunneler 2 | . . . . 2 Watcher 1 | . 1 . . . Swarmer 7 | . 4 . . 3 Grunt 5 | . 3 . . 2 Best Kill Streak 3 | . 3 . . 3 Combat Bots Only 4 | . 4 . . 2 Max Kills in Single Turn 1 | . 1 . . 1 Gunslinging . | . . . . . Exploded . | . . . . . Melee . | . . . . . Uniques/NPCs Destroyed . | . . . . . Combat | -11 -10 -10 -10 -9 -------- Run | Yrd Mat Min Exi Min Hostile Shots Fired 158 | . 87 . . 71 Missed 44 | . 24 . . 20 Damage Taken 1040 | . 624 . . 416 Core 260 | . 152 . . 108 Absorbed by Shields . | . . . . . Core Remaining (%) 100 | 100 . . . . Volleys Fired 53 | . 31 . . 22 Largest 2 | . 2 . . 2 Hottest 130 | . 130 . . 130 Shots Fired 105 | . 62 . . 43 Gun 105 | . 62 . . 43 Cannon . | . . . . . Launcher . | . . . . . Special . | . . . . . Kinetic 42 | . 29 . . 13 Thermal 63 | . 33 . . 30 Explosive . | . . . . . Electromagnetic . | . . . . . Robot Hit Streak 9 | . 9 . . 6 Robot Miss Streak 3 | . 3 . . 3 Penetration Max . | . . . . . Secondary Targets 4 | . 2 . . 2 Max Gunslinging Chain 1 | . 1 . . 1 Shots Hit Robots 59 | . 36 . . 23 Core Hits 21 | . 12 . . 9 Critical Kills . | . . . . . Critical Parts Destroyed . | . . . . . Critical Strikes 6 | . 3 . . 3 Burn 6 | . 3 . . 3 Melee Attacks . | . . . . . Impact . | . . . . . Slashing . | . . . . . Piercing . | . . . . . Sneak Attacks . | . . . . . Combat Hostiles . | . . . . . Follow-up Attacks . | . . . . . Damage Inflicted 767 | . 419 . . 348 Guns 767 | . 419 . . 348 Cannons . | . . . . . Explosions . | . . . . . Melee . | . . . . . Ramming . | . . . . . Kinetic 235 | . 134 . . 101 Thermal 532 | . 285 . . 247 Explosive . | . . . . . Electromagnetic . | . . . . . Impact . | . . . . . Slashing . | . . . . . Piercing . | . . . . . Highest Corruption . | . . . . . Average Corruption . | . . . . . Corruption Purged . | . . . . . Corruption Blocked . | . . . . . Overload Shots . | . . . . . Overflow Damage . | . . . . . Projectiles . | . . . . . Explosions . | . . . . . Melee . | . . . . . Knockbacks . | . . . . . Impact . | . . . . . Kinetic . | . . . . . Secondary . | . . . . . Self-Inflicted Damage . | . . . . . Shots . | . . . . . Rammed . | . . . . . Targets Rammed . | . . . . . Kicked . | . . . . . Crushed . | . . . . . Highest Temperature 277 | . 277 . . 207 Average Temperature 84 | . 91 . . 76 Received Heat Transfer 201 | . 165 . . 36 Siege Activations . | . . . . . Robots Corrupted . | . . . . . Combat Hostiles . | . . . . . Parts Fried . | . . . . . Impact Corruptions . | . . . . . Robots Melted 1 | . 1 . . . Combat Hostiles 1 | . 1 . . . Parts Melted 3 | . 2 . . 1 Heat Transferred 1850 | . 1036 . . 814 Parts Sabotaged . | . . . . . Parts Stolen . | . . . . . Parts Stripped . | . . . . . Power Chain Reactions . | . . . . . Alert | -11 -10 -10 -10 -9 ------- Run | Yrd Mat Min Exi Min Peak Influence 180 | . 180 11 . 120 Initial 11 | . . 11 . . Average 52 | . 88 11 . 31 Maximum Alert Level . | . . . . . Low Security (%) 100 | 100 100 100 . 100 Level 1 . | . . . . . Level 2 . | . . . . . Level 3 . | . . . . . Level 4 . | . . . . . Level 5 . | . . . . . High Security . | . . . . . Max Security . | . . . . . Squads Dispatched 3 | . 2 . . 1 Investigation 1 | . 1 . . . Extermination . | . . . . . Reinforcement 2 | . 1 . . 1 Assault . | . . . . . Garrison . | . . . . . Intercept . | . . . . . Searches Triggered . | . . . . . Construction Impeded 1 | . . . . 1 Haulers Reinforced . | . . . . . Active Scanning Responses . | . . . . . Cargo Convoy Interrupts . | . . . . . Stealth | -11 -10 -10 -10 -9 --------- Run | Yrd Mat Min Exi Min Distress Signals 2 | . 1 . . 1 Communications Jammed . | . . . . . Distress Signals . | . . . . . Times Spotted 28 | . 15 4 . 9 Peak Tracking Total 11 | . 7 11 . 4 Tactical Retreats 1 | . . . . 1 Traps | -11 -10 -10 -10 -9 ------- Run | Yrd Mat Min Exi Min Traps Triggered 1 | . 1 . . . Indirectly . | . . . . . Trap Hack Attempts . | . . . . . Triggered . | . . . . . Disarmed . | . . . . . Reprogrammed . | . . . . . Reused . | . . . . . Traps Extracted . | . . . . . Installed . | . . . . . Triggered . | . . . . . Machines | -11 -10 -10 -10 -9 ---------- Run | Yrd Mat Min Exi Min Machines Disabled . | . . . . . Max in Single Turn . | . . . . . Machines Repaired . | . . . . . Machines Dismantled . | . . . . . Machines Sabotaged . | . . . . . Overloaded Fab Kills . | . . . . . Hacking | -11 -10 -10 -10 -9 --------- Run | Yrd Mat Min Exi Min Machines Accessed 9 | . 5 . 4 . Terminals 4 | . 4 . . . Fabricators . | . . . . . Repair Stations . | . . . . . Recycling Units 1 | . 1 . . . Scanalyzers . | . . . . . Garrison Access . | . . . . . Total Hacks 57 | . 8 . 49 . Successful 55 | . 6 . 49 . Failed 2 | . 2 . . . Catastrophic . | . . . . . Database Lockouts . | . . . . . Manual 1 | . . . 1 . Terminals 7 | . 7 . . . Fabricators . | . . . . . Repair Stations . | . . . . . Recycling Units 1 | . 1 . . . Scanalyzers . | . . . . . Garrison Access . | . . . . . Terminal Hacks 54 | . 5 . 49 . Record 50 | . 1 . 49 . Prototype ID Bank 1 | . 1 . . . Branch Access Points 1 | . 1 . . . Locate Traps 1 | . 1 . . . Hauler Manifests 1 | . 1 . . . Fabricator Hacks . | . . . . . Repair Station Hacks . | . . . . . Recycling Unit Hacks 1 | . 1 . . . Report Inventory 1 | . 1 . . . Scanalyzer . | . . . . . Garrison Access Hacks . | . . . . . Unauthorized Hacks . | . . . . . Terminals . | . . . . . Fabricators . | . . . . . Repair Stations . | . . . . . Recycling Units . | . . . . . Scanalyzers . | . . . . . Garrison Access . | . . . . . Data Cores Recovered . | . . . . . Used . | . . . . . Hacking Detections 2 | . 2 . . . Full Trace Events . | . . . . . Feedback Events . | . . . . . Feedback Blocked . | . . . . . Robot Schematics Acquired . | . . . . . Robots Built . | . . . . . Authchips . | . . . . . Time . | . . . . . Total Robot Build Rating . | . . . . . Part Schematics Acquired . | . . . . . Parts Built . | . . . . . Authchips . | . . . . . Time . | . . . . . Total Part Build Rating . | . . . . . Parts Repaired . | . . . . . Time . | . . . . . Parts Recycled . | . . . . . Recycled Matter . | . . . . . Retrieved Matter . | . . . . . Retrieved Components . | . . . . . Parts Scanalyzed . | . . . . . Part Schematics Acquired . | . . . . . Parts Damaged . | . . . . . Bothacking | -11 -10 -10 -10 -9 ------------ Run | Yrd Mat Min Exi Min Used RIF Installer . | . . . . . Robots Hacked . | . . . . . Non-combat . | . . . . . Combat . | . . . . . Robot Hacks Applied . | . . . . . Relay Couplers Released . | . . . . . Fabnet Peak Effective % . | . . . . . Robots Rewired . | . . . . . Allies Hacked . | . . . . . Hacks Repelled . | . . . . . Allies | -11 -10 -10 -10 -9 -------- Run | Yrd Mat Min Exi Min Total Allies 2 | . . 2 . . Largest Group 2 | . . 2 2 . Highest-Rated Group 46 | . . 46 46 . Highest-Rated Ally 31 | . . 31 31 . Total Orders . | . . . . . Ally Attacks . | . . . . . Total Damage . | . . . . . Kills . | . . . . . Allies Corrupted . | . . . . . Allies Melted . | . . . . . Intel | -11 -10 -10 -10 -9 ------- Run | Yrd Mat Min Exi Min Robot Analysis Total . | . . . . . Derelict Logs Recovered 2 | . . 1 . 1 Drone Launches . | . . . . . Drone Recoveries . | . . . . . Exploration | -11 -10 -10 -10 -9 ------------- Run | Yrd Mat Min Exi Min Turns Passed 2170 | 68 478 96 1106 422 Spaces Moved 1464 | 49 272 81 845 217 Core 5 | 5 . . . . Treads . | . . . . . Legs 1459 | 44 272 81 845 217 Wheels . | . . . . . Hover . | . . . . . Flight . | . . . . . Fastest Speed 50 | 50 120 120 120 120 Average Speed 131 | 112 131 120 128 151 Slowest Speed 190 | 120 190 120 190 190 Overloaded Moves . | . . . . . Propulsion Burnouts . | . . . . . Robots Hopped . | . . . . . Cave-ins Triggered . | . . . . . Exploration Rate (%) 43 | 4 67 25 93 26 Regions Visited 4 Branch Regions 3 Pre-discovered Areas 1 | . . . 1 . Known Exits Taken 2 | . 1 1 . . Unknown Exits Taken 2 | 1 . . 1 . Scrap Searched . | . . . . . Spaces Dug . | . . . . . Terrain Destroyed . | . . . . . Melee . | . . . . . Projectile . | . . . . . AOE . | . . . . . Terrain Rammed . | . . . . . Walls Destroyed . | . . . . . Machines Disabled . | . . . . . Actions | -11 -10 -10 -10 -9 --------- Run | Yrd Mat Min Exi Min Total 1612 | 58 335 80 870 269 Wait 49 | . 7 . 23 19 Move 1460 | 48 271 80 844 217 Hop . | . . . . . Pick Up 18 | 4 11 . . 3 Fast Attach 8 | 6 1 . 1 . Attach 7 | . 4 . . 3 Detach . | . . . . . Swap 8 | . 6 . . 2 Drop 8 | . 4 . 1 3 Fire 53 | . 31 . . 22 Melee . | . . . . . Ram . | . . . . . Kick . | . . . . . Crush . | . . . . . Escape Stasis . | . . . . . Rewire 1 | . . . 1 . Trap . | . . . . . Miscellaneous . | . . . . . Route ------- -11/Scrapyard -10/Materials (discovered 3 exits: *Mat / *Min x2) -10/Mines -10/Exiles (discovered 2 exits: [*Min x2]) -9/Mines History --------- Turn | Location | Event 11 | -11/Scrapyard | Discovered new exit (range 15) 69 | -11/Scrapyard | Entered Materials 235 | -10/Materials | Core integrity fell below 50% 308 | -10/Materials | Build established: Mutant 330 | -10/Materials | Discovered new exit (range 15) 421 | -10/Materials | Discovered new exit (range 9) 423 | -10/Materials | Identified exit to Mines 430 | -10/Materials | Identified exit to Materials 547 | -10/Materials | Entered Mines 548 | -10/Mines | Assembled infested the area 549 | -10/Mines | Learned Materials stockpile data 639 | -10/Mines | Discovered new exit (range 5) 642 | -10/Mines | Identified exit to Exiles 643 | -10/Mines | Entered Exiles 643 | -10/Exiles | Accompanied by 2 allies 664 | -10/Exiles | Discovered new exit (range 14) 673 | -10/Exiles | Led the pair of lost Derelicts to a safe place 729 | -10/Exiles | Met 8R-AWN 753 | -10/Exiles | Met EX-HEX 815 | -10/Exiles | Met EX-DEC 844 | -10/Exiles | Learned location of Zion (-7) 895 | -10/Exiles | Visited The Gauntlet 1102 | -10/Exiles | Discovered new exit (range 14) 1199 | -10/Exiles | Met EX-BIN 1525 | -10/Exiles | Aligned with FarCom system 1527 | -10/Exiles | Given EX-Vault access code 1558 | -10/Exiles | Opened EX-Vault 1566 | -10/Exiles | Found Prototype Device 1566 | -10/Exiles | Identified PSU Rigger 1609 | -10/Exiles | Warned to stay clear of 0b10 Research branches 1749 | -10/Exiles | Left Exiles lab with PSU Rigger 1749 | -10/Exiles | Entered Mines 1781 | -9/Mines | Learned Materials machine intel 1861 | -9/Mines | Excavation squad dispatched 1861 | -9/Mines | A large section of the Mines collapsed 1946 | -9/Mines | Core integrity fell below 20% 2111 | -9/Mines | Excavation squad dispatched 2171 | -9/Mines | Destroyed by G-34 Mercenary with Small Laser Last Messages --------------- Acquired 12 matter. T-07 Excavator destroyed. Acquired 17 matter. Acquired 12 matter. Acquired Lgt. Ion Engine. Dropped Aluminum Leg. Acquired Imp. Terrain Scanner. Acquired Mining Laser. ALERT: Derelict activity in mines confirmed. Dispatching additional escorted excavation squad. G-34 Mercenary suffers critical hit (Burn). G-34 Mercenary destroyed. G-34 Mercenary suffers critical hit (Burn). Sml. Laser melted. G-34 Mercenary destroyed. Dropped Aluminum Leg. Acquired 66 matter. Dropped Aluminum Leg. Acquired 11 matter. Map ----- +----------------------------------------------------+ | ???????????????????????????????????????????????? | | ???????????????????????????????????????????????? | | ???????????????????????????????????????????????? | | ???????????????????????????????????????????????? | | ???????????????????????????????????????????????? | | ???????????????????????????????????????????????? | | ?????????????????????????????######????????????? | | ????????????????????????????## ##???????????? | | ????????????????????????????# ##??????????? | | ????????????????????????????# #??????????? | | ???????????????????????????## #??####????? | | ???????????????????????##### #?## ##???? | | ??????????????????????## #??# #???? | | ??????????????????????## ##??# #???? | | ??????????????????????## #### ##??## #???? | | ??????????????????????#"#"##?## ##?## ##???? | | ??????????????????????#####?## ### ##????? | | ?????????????????????# #?# s #?????? | | ???????????????????? #?# ##?????? | | ??????????????????? #?## ###### ##??????? | | ?????????????????? ##??####????# #???????? | | ?????????????????## ##??####??#### #???????? | | ??????????????????## #??### ##?# #???????? | | ??????????????#????####??## ### ####???????? | | ?????????? ####### ## ###????????? | | ??????????*% t @ t #????????? | | ??????????rrt k #????????? | | ?????????? % g t### #????????? | | ??????????? #?# #????????? | | ??????????? ##?# #????????? | | ???????????? gg t u ##??# #????????? | | ???????????? t ## ######???# #????????? | | ???????????? ??#######????????# #????????? | | ????????????? ??????????????????# #????????? | | ????????????? ???????????????????# #????????? | | ?????????????? ????????????????????# #????????? | | ???????????????????????????????????# #????????? | | ???????????????????????????????????# #????????? | | ???????????????????????????????????#= #????????? | | ??????????????g???????????????????## %#????????? | | ?????????????????????????????????##!=[#????????? | | ???????????????????????????????### ##????????? | | ??????????????????????????????## #?????????? | | ??????????????????????????????# #?????????? | | ??????????????????????????????# #?????????? | | ??????????????????????????????## ##????????? | | ???????????????????????????????## #????????? | | ????????????????????????????????## #????????? | | ?????????????????????????????????## ##????????? | | ??????????????????????????????????## #?????????? | +----------------------------------------------------+ Best States ------------- Heat Dissipation 25 Energy Generation 10 Energy Capacity 250 Matter Stores 233 Matter Capacity 300 Sight Range 16 Terrain Scan Density 10 Evasion (%) 55 Item Schematics ----------------- None Robot Schematics ------------------ None Fabricated ------------ Nothing Alien Tech Used ----------------- None Achievements -------------- I Survived The Infestation Risk Taker Slippery One Tourist Challenges ------------ None Game ------ Seed BlastBoreMediator Manual? 0 Play Time 00:27:07 Cumulative 3.6 hours Start 2024.04.03 @ 12:19:05 End 2024.04.03 @ 12:44:02 Sessions 1 Manual Loads 0 Difficulty Rogue Special Mode None Game No. 7 Rogue 1 Adventurer 6 Explorer 0 Win Type - Total 0 Types 0/0/0/0/0/0/0/0/0 Lore% 11 Gallery% 7 Achievement% 8 Wizard Run 0 Options --------- Layout 1 ASCII 0 Keyboard 0 Movement Mouse Keybinds 0 Fullscreen 1 Font 24/Smallcaps Map View 50x35 Zoom Use 0% Tactical HUD 0 Map Filters NONE Filters NONE Steam 1 RUN: ee143f7b-71be-430e-9ebf-bc1bc8f2ddf4